[Event "Titled Tuesday Blitz November 15 Late 2022"]
[White "Castella Garcia, Fausto"]
[Black "Joubert, Dantelle"]
[WhiteFideId "3501922"]
[BlackFideId "14310813"]
[WhiteElo "2245"]
[BlackElo "1507"]
[Result "1-0"]
[Round "05"]
[TimeControl "180+1"]
[Date "2022.11.16"]
[WhiteClock "0:00:50"]
[BlackClock "0:00:05"]

1. e4 {[%clk 0:02:53]}  e5 {[%clk 0:02:59]} 2. Nf3 {[%clk 0:02:53]}  Nc6 {[%clk 0:02:58]} 3. Bb5 {[%clk 0:02:53]}  Nf6 {[%clk 0:02:57]} 4. O-O {[%clk 0:02:53]}  Nxe4 {[%clk 0:02:57]} 5. Re1 {[%clk 0:02:53]}  Nd6 {[%clk 0:02:56]} 6. Nxe5 {[%clk 0:02:51]}  Nxe5 {[%clk 0:02:47]} 7. Rxe5+ {[%clk 0:02:51]}  Be7 {[%clk 0:02:47]} 8. Bd3 {[%clk 0:02:50]}  O-O {[%clk 0:02:38]} 9. Nc3 {[%clk 0:02:48]}  Bf6 {[%clk 0:02:34]} 10. Re3 {[%clk 0:02:48]}  g6 {[%clk 0:02:34]} 11. Nd5 {[%clk 0:02:47]}  Bg7 {[%clk 0:02:33]} 12. Ne7+ {[%clk 0:02:47]}  Kh8 {[%clk 0:02:32]} 13. c4 {[%clk 0:02:47]}  c6 {[%clk 0:02:15]} 14. Rb1 {[%clk 0:02:44]}  Re8 {[%clk 0:02:03]} 15. Nxc8 {[%clk 0:02:36]}  Nxc8 {[%clk 0:01:54]} 16. Qe2 {[%clk 0:02:22]}  Nd6 {[%clk 0:01:51]} 17. c5 {[%clk 0:02:20]}  Nb5 {[%clk 0:01:35]} 18. Bxb5 {[%clk 0:02:18]}  cxb5 {[%clk 0:01:27]} 19. Qxb5 {[%clk 0:02:18]}  b6 {[%clk 0:01:20]} 20. b4 {[%clk 0:02:11]}  bxc5 {[%clk 0:01:13]} 21. bxc5 {[%clk 0:02:06]}  Bd4 {[%clk 0:01:03]} 22. Rxe8+ {[%clk 0:01:58]}  Qxe8 {[%clk 0:01:02]} 23. Bb2 {[%clk 0:01:57]}  Qe5 {[%clk 0:00:59]} 24. Bxd4 {[%clk 0:01:50]}  Qxd4 {[%clk 0:00:59]} 25. Qb2 {[%clk 0:01:49]}  Qxb2 {[%clk 0:00:57]} 26. Rxb2 {[%clk 0:01:49]}  Rc8 {[%clk 0:00:57]} 27. d4 {[%clk 0:01:48]}  d6 {[%clk 0:00:57]} 28. Rc2 {[%clk 0:01:48]}  dxc5 {[%clk 0:00:56]} 29. dxc5 {[%clk 0:01:48]}  Rc6 {[%clk 0:00:55]} 30. Kf1 {[%clk 0:01:47]}  Kg7 {[%clk 0:00:55]} 31. Ke2 {[%clk 0:01:47]}  Kf6 {[%clk 0:00:56]} 32. Kd3 {[%clk 0:01:48]}  Ke5 {[%clk 0:00:53]} 33. Kc4 {[%clk 0:01:48]}  Ra6 {[%clk 0:00:53]} 34. Re2+ {[%clk 0:01:47]}  Kf6 {[%clk 0:00:52]} 35. Kb5 {[%clk 0:01:47]}  Ra3 {[%clk 0:00:47]} 36. Rc2 {[%clk 0:01:46]}  Ke7 {[%clk 0:00:45]} 37. c6 {[%clk 0:01:44]}  Kd8 {[%clk 0:00:45]} 38. Rd2+ {[%clk 0:01:37]}  Kc8 {[%clk 0:00:44]} 39. Rd7 {[%clk 0:01:37]}  Rxa2 {[%clk 0:00:41]} 40. Rxf7 {[%clk 0:01:38]}  Rb2+ {[%clk 0:00:35]} 41. Kc5 {[%clk 0:01:38]}  Rc2+ {[%clk 0:00:34]} 42. Kd6 {[%clk 0:01:38]}  Rd2+ {[%clk 0:00:34]} 43. Ke7 {[%clk 0:01:37]}  h5 {[%clk 0:00:29]} 44. Kf8 {[%clk 0:01:31]}  a5 {[%clk 0:00:27]} 45. Ra7 {[%clk 0:01:28]}  Rd5 {[%clk 0:00:25]} 46. Kg7 {[%clk 0:01:27]}  g5 {[%clk 0:00:25]} 47. Kg6 {[%clk 0:01:20]}  h4 {[%clk 0:00:24]} 48. Kh5 {[%clk 0:01:20]}  Rc5 {[%clk 0:00:22]} 49. f4 {[%clk 0:01:19]}  gxf4+ {[%clk 0:00:19]} 50. Kxh4 {[%clk 0:01:19]}  Rxc6 {[%clk 0:00:19]} 51. Rxa5 {[%clk 0:01:19]}  Rc2 {[%clk 0:00:17]} 52. Rg5 {[%clk 0:01:17]}  Kd7 {[%clk 0:00:16]} 53. Kh3 {[%clk 0:01:08]}  Ke6 {[%clk 0:00:14]} 54. Ra5 {[%clk 0:01:04]}  Kf6 {[%clk 0:00:12]} 55. Kg4 {[%clk 0:00:59]}  Rxg2+ {[%clk 0:00:10]} 56. Kh3 {[%clk 0:00:58]}  Rf2 {[%clk 0:00:10]} 57. Ra4 {[%clk 0:00:55]}  Kf5 {[%clk 0:00:07]} 58. Ra8 {[%clk 0:00:55]}  Ke4 {[%clk 0:00:06]} 59. Re8+ {[%clk 0:00:50]}  Kf3 {[%clk 0:00:05]} 60. Rf8 {[%clk 0:00:50]} 1-0


[Site "https://www.chess.com"]

[Event "Titled Tuesday Blitz November 15 Late 2022"]
[White "D`Arruda, Ricardo D."]
[Black "Tanenbaum, Zachary"]
[WhiteFideId "100692"]
[BlackFideId "2060850"]
[WhiteElo "2488"]
[BlackElo "2175"]
[Result "1-0"]
[Round "05"]
[TimeControl "180+1"]
[Date "2022.11.16"]
[WhiteClock "0:00:20"]
[BlackClock "0:00:06"]

1. d4 {[%clk 0:02:47]}  d5 {[%clk 0:02:58]} 2. Nf3 {[%clk 0:02:46]}  Nf6 {[%clk 0:02:58]} 3. Nbd2 {[%clk 0:02:44]}  Bf5 {[%clk 0:02:56]} 4. e3 {[%clk 0:02:43]}  e6 {[%clk 0:02:56]} 5. Be2 {[%clk 0:02:41]}  c5 {[%clk 0:02:50]} 6. Nh4 {[%clk 0:02:40]}  Be4 {[%clk 0:02:48]} 7. Nxe4 {[%clk 0:02:39]}  dxe4 {[%clk 0:02:47]} 8. g3 {[%clk 0:02:38]}  Nc6 {[%clk 0:02:43]} 9. c3 {[%clk 0:02:38]}  Be7 {[%clk 0:02:39]} 10. f4 {[%clk 0:02:31]}  exf3 {[%clk 0:02:37]} 11. Nxf3 {[%clk 0:02:27]}  O-O {[%clk 0:02:32]} 12. O-O {[%clk 0:02:27]}  Qc7 {[%clk 0:02:29]} 13. Bd3 {[%clk 0:02:06]}  Rad8 {[%clk 0:02:17]} 14. Qc2 {[%clk 0:01:48]}  e5 {[%clk 0:02:12]} 15. Nxe5 {[%clk 0:01:36]}  Nxe5 {[%clk 0:02:13]} 16. dxe5 {[%clk 0:01:35]}  Qxe5 {[%clk 0:02:13]} 17. e4 {[%clk 0:01:30]}  c4 {[%clk 0:02:13]} 18. Be2 {[%clk 0:01:28]}  Nxe4 {[%clk 0:01:45]} 19. Bf4 {[%clk 0:01:27]}  Qd5 {[%clk 0:01:37]} 20. Bf3 {[%clk 0:01:21]}  Bc5+ {[%clk 0:01:36]} 21. Kg2 {[%clk 0:01:21]}  f5 {[%clk 0:01:34]} 22. Rad1 {[%clk 0:01:20]}  Qe6 {[%clk 0:01:31]} 23. Rxd8 {[%clk 0:01:14]}  Rxd8 {[%clk 0:01:30]} 24. Re1 {[%clk 0:01:15]}  Rd3 {[%clk 0:01:26]} 25. g4 {[%clk 0:01:05]}  Qg6 {[%clk 0:00:28]} 26. Qe2 {[%clk 0:00:57]}  Bd6 {[%clk 0:00:20]} 27. Bc1 {[%clk 0:00:48]}  h5 {[%clk 0:00:15]} 28. Bxe4 {[%clk 0:00:45]}  fxe4 {[%clk 0:00:13]} 29. Qxe4 {[%clk 0:00:46]}  Qxe4+ {[%clk 0:00:11]} 30. Rxe4 {[%clk 0:00:47]}  Rd1 {[%clk 0:00:09]} 31. Bg5 {[%clk 0:00:45]}  hxg4 {[%clk 0:00:07]} 32. Rxc4 {[%clk 0:00:44]}  Re1 {[%clk 0:00:06]} 33. Rxg4 {[%clk 0:00:24]}  Re2+ {[%clk 0:00:05]} 34. Kf3 {[%clk 0:00:24]}  Rxb2 {[%clk 0:00:06]} 35. Rg2 {[%clk 0:00:25]}  Rxg2 {[%clk 0:00:04]} 36. Kxg2 {[%clk 0:00:26]}  Kf7 {[%clk 0:00:04]} 37. h3 {[%clk 0:00:24]}  Ke6 {[%clk 0:00:04]} 38. Kf3 {[%clk 0:00:23]}  Be5 {[%clk 0:00:05]} 39. c4 {[%clk 0:00:20]}  Kf5 {[%clk 0:00:05]} 40. Be3 {[%clk 0:00:21]}  a6 {[%clk 0:00:04]} 41. a4 {[%clk 0:00:21]}  g5 {[%clk 0:00:04]} 42. Bf2 {[%clk 0:00:21]}  Bc3 {[%clk 0:00:04]} 43. Be3 {[%clk 0:00:22]}  Ba5 {[%clk 0:00:03]} 44. Bd4 {[%clk 0:00:22]}  Bc7 {[%clk 0:00:02]} 45. Bc3 {[%clk 0:00:22]}  Bd6 {[%clk 0:00:03]} 46. Bd4 {[%clk 0:00:22]}  Be7 {[%clk 0:00:03]} 47. Bc3 {[%clk 0:00:22]}  Bd8 {[%clk 0:00:03]} 48. Bd4 {[%clk 0:00:22]}  Ke6 {[%clk 0:00:03]} 49. Ke4 {[%clk 0:00:21]}  Kd6 {[%clk 0:00:02]} 50. Kf5 {[%clk 0:00:20]}  Kc6 {[%clk 0:00:03]} 51. Be3 {[%clk 0:00:21]}  Bc7 {[%clk 0:00:01]} 52. Bxg5 {[%clk 0:00:20]}  Kc5 {[%clk 0:00:01]} 53. h4 {[%clk 0:00:20]}  Kxc4 {[%clk 0:00:02]} 54. h5 {[%clk 0:00:21]}  Ba5 {[%clk 0:00:01]} 55. h6 {[%clk 0:00:21]}  Bc3 {[%clk 0:00:02]} 56. Bf6 {[%clk 0:00:21]}  Bxf6 {[%clk 0:00:02]} 57. Kxf6 {[%clk 0:00:21]}  b5 {[%clk 0:00:03]} 58. axb5 {[%clk 0:00:20]}  axb5 {[%clk 0:00:03]} 59. h7 {[%clk 0:00:21]}  b4 {[%clk 0:00:04]} 60. h8=Q {[%clk 0:00:21]}  b3 {[%clk 0:00:05]} 61. Kf5 {[%clk 0:00:20]}  Kd3 {[%clk 0:00:04]} 62. Qb2 {[%clk 0:00:20]}  Kc4 {[%clk 0:00:05]} 63. Ke4 {[%clk 0:00:21]}  Kb4 {[%clk 0:00:05]} 64. Kd4 {[%clk 0:00:21]}  Ka4 {[%clk 0:00:05]} 65. Kc5 {[%clk 0:00:20]}  Ka5 {[%clk 0:00:06]} 66. Qa3# {[%clk 0:00:20]} 1-0


[Site "https://www.chess.com"]

[Event "Titled Tuesday Blitz November 15 Late 2022"]
[White "Djokic, Mihailo"]
[Black "Swiercz, Dariusz"]
[WhiteFideId "976440"]
[BlackFideId "1126881"]
[WhiteElo "2315"]
[BlackElo "2627"]
[Result "0-1"]
[Round "05"]
[TimeControl "180+1"]
[Date "2022.11.16"]
[WhiteClock "0:00:08"]
[BlackClock "0:00:32"]

1. e4 {[%clk 0:03:00]}  e5 {[%clk 0:02:59]} 2. Nf3 {[%clk 0:03:01]}  Nc6 {[%clk 0:02:59]} 3. Nc3 {[%clk 0:03:01]}  Nf6 {[%clk 0:02:59]} 4. Bb5 {[%clk 0:03:02]}  Bb4 {[%clk 0:02:59]} 5. O-O {[%clk 0:03:02]}  O-O {[%clk 0:02:58]} 6. d3 {[%clk 0:03:03]}  Bxc3 {[%clk 0:02:59]} 7. bxc3 {[%clk 0:03:03]}  d6 {[%clk 0:02:59]} 8. Re1 {[%clk 0:03:04]}  Ne7 {[%clk 0:03:00]} 9. d4 {[%clk 0:03:05]}  Ng6 {[%clk 0:03:00]} 10. dxe5 {[%clk 0:03:05]}  dxe5 {[%clk 0:02:30]} 11. Ba3 {[%clk 0:03:04]}  Bg4 {[%clk 0:02:31]} 12. Bxf8 {[%clk 0:03:04]}  Qxf8 {[%clk 0:02:32]} 13. h3 {[%clk 0:03:04]}  Bxf3 {[%clk 0:02:27]} 14. Qxf3 {[%clk 0:03:04]}  Qc5 {[%clk 0:02:27]} 15. Rab1 {[%clk 0:03:02]}  a6 {[%clk 0:02:19]} 16. Bf1 {[%clk 0:02:58]}  b6 {[%clk 0:02:18]} 17. Qe3 {[%clk 0:02:56]}  Qe7 {[%clk 0:02:12]} 18. Bc4 {[%clk 0:02:56]}  Nd7 {[%clk 0:02:07]} 19. Red1 {[%clk 0:02:55]}  Nc5 {[%clk 0:02:07]} 20. Bd5 {[%clk 0:02:54]}  Rf8 {[%clk 0:02:06]} 21. g3 {[%clk 0:02:54]}  a5 {[%clk 0:02:04]} 22. Kg2 {[%clk 0:02:50]}  Qf6 {[%clk 0:02:04]} 23. h4 {[%clk 0:02:46]}  h6 {[%clk 0:02:03]} 24. Rd2 {[%clk 0:02:43]}  Ne7 {[%clk 0:01:57]} 25. Bc4 {[%clk 0:02:40]}  Nc8 {[%clk 0:01:55]} 26. Rf1 {[%clk 0:02:22]}  Nd6 {[%clk 0:01:55]} 27. Bd5 {[%clk 0:02:20]}  c6 {[%clk 0:01:53]} 28. Bb3 {[%clk 0:01:59]}  a4 {[%clk 0:01:53]} 29. Rfd1 {[%clk 0:01:53]}  Ndxe4 {[%clk 0:01:50]} 30. Re2 {[%clk 0:01:18]}  axb3 {[%clk 0:01:50]} 31. cxb3 {[%clk 0:01:18]}  Qe6 {[%clk 0:01:02]} 32. b4 {[%clk 0:01:13]}  Na4 {[%clk 0:01:02]} 33. Qxe4 {[%clk 0:01:06]}  Nxc3 {[%clk 0:01:02]} 34. Qc2 {[%clk 0:00:51]}  Nxd1 {[%clk 0:00:58]} 35. Qxd1 {[%clk 0:00:51]}  b5 {[%clk 0:00:57]} 36. f4 {[%clk 0:00:44]}  Ra8 {[%clk 0:00:50]} 37. Qd2 {[%clk 0:00:42]}  e4 {[%clk 0:00:47]} 38. Qc2 {[%clk 0:00:25]}  f5 {[%clk 0:00:46]} 39. Kh3 {[%clk 0:00:18]}  Qg6 {[%clk 0:00:46]} 40. Kh2 {[%clk 0:00:17]}  Kh7 {[%clk 0:00:46]} 41. Re3 {[%clk 0:00:17]}  Rd8 {[%clk 0:00:45]} 42. a3 {[%clk 0:00:15]}  Rd4 {[%clk 0:00:43]} 43. Rc3 {[%clk 0:00:13]}  Qg4 {[%clk 0:00:32]} 44. Rxc6 {[%clk 0:00:08]}  e3 {[%clk 0:00:32]} 45. Re6 {[%clk 0:00:08]}  Rd2+ {[%clk 0:00:32]} 0-1


[Site "https://www.chess.com"]

[Event "Titled Tuesday Blitz November 15 Late 2022"]
[White "Domingo Nunez, Alejandro"]
[Black "Maksimovic, Bojan"]
[WhiteFideId "22245561"]
[BlackFideId "14408120"]
[WhiteElo "2242"]
[BlackElo "2447"]
[Result "0-1"]
[Round "05"]
[TimeControl "180+1"]
[Date "2022.11.16"]
[WhiteClock "0:00:02"]
[BlackClock "0:00:09"]

1. Nf3 {[%clk 0:03:00]}  g6 {[%clk 0:02:59]} 2. g3 {[%clk 0:03:00]}  Bg7 {[%clk 0:03:00]} 3. d4 {[%clk 0:02:59]}  d6 {[%clk 0:03:00]} 4. Bg2 {[%clk 0:02:59]}  Nf6 {[%clk 0:03:01]} 5. b3 {[%clk 0:02:58]}  c5 {[%clk 0:03:00]} 6. Bb2 {[%clk 0:02:57]}  Qa5+ {[%clk 0:02:56]} 7. Qd2 {[%clk 0:02:56]}  Qxd2+ {[%clk 0:02:55]} 8. Nbxd2 {[%clk 0:02:56]}  Na6 {[%clk 0:02:56]} 9. O-O {[%clk 0:02:44]}  O-O {[%clk 0:02:56]} 10. c4 {[%clk 0:02:42]}  Bd7 {[%clk 0:02:56]} 11. dxc5 {[%clk 0:02:38]}  Nxc5 {[%clk 0:02:55]} 12. Nd4 {[%clk 0:02:36]}  Rab8 {[%clk 0:02:54]} 13. Rac1 {[%clk 0:02:34]}  Rfc8 {[%clk 0:02:51]} 14. Rfd1 {[%clk 0:02:32]}  a6 {[%clk 0:02:46]} 15. b4 {[%clk 0:02:23]}  Na4 {[%clk 0:02:45]} 16. Ba1 {[%clk 0:02:23]}  b5 {[%clk 0:02:44]} 17. cxb5 {[%clk 0:02:18]}  axb5 {[%clk 0:02:44]} 18. N2b3 {[%clk 0:02:16]}  Rc4 {[%clk 0:02:42]} 19. Na5 {[%clk 0:02:12]}  Rxc1 {[%clk 0:02:24]} 20. Rxc1 {[%clk 0:02:13]}  d5 {[%clk 0:02:23]} 21. Ndc6 {[%clk 0:02:01]}  Re8 {[%clk 0:02:22]} 22. Ne5 {[%clk 0:01:50]}  Bf5 {[%clk 0:01:58]} 23. e3 {[%clk 0:01:42]}  Ne4 {[%clk 0:01:54]} 24. Bf1 {[%clk 0:01:37]}  Nd6 {[%clk 0:01:55]} 25. Rc7 {[%clk 0:01:25]}  Nc4 {[%clk 0:01:48]} 26. Nexc4 {[%clk 0:01:22]}  dxc4 {[%clk 0:01:46]} 27. Bxg7 {[%clk 0:01:15]}  Kxg7 {[%clk 0:01:47]} 28. Nc6 {[%clk 0:01:13]}  e5 {[%clk 0:01:39]} 29. Na7 {[%clk 0:01:13]}  Rd8 {[%clk 0:01:04]} 30. Nxb5 {[%clk 0:00:58]}  Rd1 {[%clk 0:01:04]} 31. Kg2 {[%clk 0:00:58]}  Be4+ {[%clk 0:01:05]} 32. f3 {[%clk 0:00:57]}  Rd2+ {[%clk 0:01:05]} 33. Kg1 {[%clk 0:00:57]}  Bd3 {[%clk 0:00:53]} 34. Bxd3 {[%clk 0:00:20]}  cxd3 {[%clk 0:00:54]} 35. Rd7 {[%clk 0:00:20]}  Nb6 {[%clk 0:00:53]} 36. Rd8 {[%clk 0:00:18]}  Nc4 {[%clk 0:00:54]} 37. Nc3 {[%clk 0:00:18]}  Nxe3 {[%clk 0:00:53]} 38. b5 {[%clk 0:00:18]}  Nc4 {[%clk 0:00:28]} 39. Ne4 {[%clk 0:00:15]}  Rd1+ {[%clk 0:00:24]} 40. Kf2 {[%clk 0:00:15]}  d2 {[%clk 0:00:25]} 41. b6 {[%clk 0:00:09]}  Nxb6 {[%clk 0:00:18]} 42. Rd3 {[%clk 0:00:08]}  Nc4 {[%clk 0:00:16]} 43. a4 {[%clk 0:00:02]}  f5 {[%clk 0:00:11]} 44. Nc3 {[%clk 0:00:02]}  Ra1 {[%clk 0:00:09]} 0-1


[Site "https://www.chess.com"]

[Event "Titled Tuesday Blitz November 15 Late 2022"]
[White "Dudzinski, Pawel"]
[Black "Thiel, Thomas"]
[WhiteFideId "1117890"]
[BlackFideId "4615964"]
[WhiteElo "2086"]
[BlackElo "2225"]
[Result "0-1"]
[Round "05"]
[TimeControl "180+1"]
[Date "2022.11.16"]
[WhiteClock "0:01:24"]
[BlackClock "0:02:03"]

1. e4 {[%clk 0:02:59]}  d5 {[%clk 0:02:55]} 2. exd5 {[%clk 0:02:58]}  Nf6 {[%clk 0:02:54]} 3. Bb5+ {[%clk 0:02:57]}  Nbd7 {[%clk 0:02:51]} 4. Nc3 {[%clk 0:02:51]}  a6 {[%clk 0:02:49]} 5. Be2 {[%clk 0:02:51]}  Nb6 {[%clk 0:02:46]} 6. d4 {[%clk 0:02:47]}  Nbxd5 {[%clk 0:02:41]} 7. Nxd5 {[%clk 0:02:47]}  Qxd5 {[%clk 0:02:38]} 8. Bf3 {[%clk 0:02:40]}  Qd6 {[%clk 0:02:35]} 9. Ne2 {[%clk 0:02:38]}  c6 {[%clk 0:02:35]} 10. O-O {[%clk 0:02:37]}  e6 {[%clk 0:02:34]} 11. Bf4 {[%clk 0:02:36]}  Qd8 {[%clk 0:02:33]} 12. c4 {[%clk 0:02:33]}  Bd6 {[%clk 0:02:33]} 13. d5 {[%clk 0:02:07]}  cxd5 {[%clk 0:02:27]} 14. cxd5 {[%clk 0:02:07]}  e5 {[%clk 0:02:19]} 15. Bg5 {[%clk 0:02:04]}  h6 {[%clk 0:02:17]} 16. Bh4 {[%clk 0:01:51]}  g5 {[%clk 0:02:15]} 17. Bg3 {[%clk 0:01:52]}  g4 {[%clk 0:02:15]} 18. Be4 {[%clk 0:01:32]}  Nxe4 {[%clk 0:02:11]} 19. Qa4+ {[%clk 0:01:32]}  Bd7 {[%clk 0:02:07]} 20. Qxe4 {[%clk 0:01:33]}  f5 {[%clk 0:02:05]} 21. Qe3 {[%clk 0:01:33]}  Qe7 {[%clk 0:02:04]} 22. f4 {[%clk 0:01:24]}  Bc5 {[%clk 0:02:03]} 0-1


[Site "https://www.chess.com"]

[Event "Titled Tuesday Blitz November 15 Late 2022"]
[White "Dzierzak, Radoslaw"]
[Black "Riehle, Marco"]
[WhiteFideId "1161407"]
[BlackFideId "12904392"]
[WhiteElo "2111"]
[BlackElo "2462"]
[Result "0-1"]
[Round "05"]
[TimeControl "180+1"]
[Date "2022.11.16"]
[WhiteClock "0:00:01"]
[BlackClock "0:00:21"]

1. e4 {[%clk 0:03:00]}  e5 {[%clk 0:02:53]} 2. Nf3 {[%clk 0:03:01]}  Nf6 {[%clk 0:02:48]} 3. Nxe5 {[%clk 0:03:00]}  Nxe4 {[%clk 0:02:48]} 4. Nf3 {[%clk 0:03:01]}  d5 {[%clk 0:02:48]} 5. Nc3 {[%clk 0:03:00]}  Nc6 {[%clk 0:02:48]} 6. Bb5 {[%clk 0:02:56]}  Bd6 {[%clk 0:02:41]} 7. Nxd5 {[%clk 0:02:40]}  O-O {[%clk 0:02:41]} 8. Bxc6 {[%clk 0:02:30]}  bxc6 {[%clk 0:02:40]} 9. Ne3 {[%clk 0:02:30]}  Re8 {[%clk 0:02:32]} 10. d3 {[%clk 0:02:24]}  Ng5 {[%clk 0:02:29]} 11. O-O {[%clk 0:02:00]}  Bb7 {[%clk 0:01:59]} 12. Nxg5 {[%clk 0:01:55]}  Qxg5 {[%clk 0:01:59]} 13. Nc4 {[%clk 0:01:52]}  Qf6 {[%clk 0:01:57]} 14. Qg4 {[%clk 0:01:33]}  c5 {[%clk 0:01:48]} 15. Qg5 {[%clk 0:01:14]}  Qe6 {[%clk 0:01:34]} 16. Bf4 {[%clk 0:01:06]}  h6 {[%clk 0:01:19]} 17. Qg3 {[%clk 0:01:05]}  Bxf4 {[%clk 0:01:20]} 18. Qxf4 {[%clk 0:01:05]}  Qd5 {[%clk 0:01:20]} 19. f3 {[%clk 0:01:02]}  Re2 {[%clk 0:01:19]} 20. Rf2 {[%clk 0:00:51]}  Rae8 {[%clk 0:01:16]} 21. Raf1 {[%clk 0:00:45]}  Rxf2 {[%clk 0:01:09]} 22. Kxf2 {[%clk 0:00:40]}  g5 {[%clk 0:01:04]} 23. Qf6 {[%clk 0:00:31]}  Re6 {[%clk 0:01:02]} 24. Qc3 {[%clk 0:00:27]}  g4 {[%clk 0:01:01]} 25. Ne3 {[%clk 0:00:14]}  Qg5 {[%clk 0:00:38]} 26. Nxg4 {[%clk 0:00:13]}  Qh4+ {[%clk 0:00:39]} 27. Kg1 {[%clk 0:00:13]}  Re2 {[%clk 0:00:30]} 28. Nf2 {[%clk 0:00:13]}  Qg5 {[%clk 0:00:28]} 29. g3 {[%clk 0:00:02]}  Bxf3 {[%clk 0:00:26]} 30. Re1 {[%clk 0:00:02]}  Qe3 {[%clk 0:00:25]} 31. Rxe2 {[%clk 0:00:02]}  Qxe2 {[%clk 0:00:26]} 32. h4 {[%clk 0:00:01]}  h5 {[%clk 0:00:25]} 33. b4 {[%clk 0:00:01]}  Qe3 {[%clk 0:00:21]} 0-1


[Site "https://www.chess.com"]

[Event "Titled Tuesday Blitz November 15 Late 2022"]
[White "Fedoseev, Vladimir"]
[Black "Shimanov, Aleksandr"]
[WhiteFideId "24130737"]
[BlackFideId "4198603"]
[WhiteElo "2726"]
[BlackElo "2605"]
[Result "1-0"]
[Round "05"]
[TimeControl "180+1"]
[Date "2022.11.15"]
[WhiteClock "0:00:10"]
[BlackClock "0:00:03"]

1. e4 {[%clk 0:03:00]}  d5 {[%clk 0:03:00]} 2. exd5 {[%clk 0:02:56]}  Qxd5 {[%clk 0:03:00]} 3. Nc3 {[%clk 0:02:56]}  Qe5+ {[%clk 0:03:01]} 4. Be2 {[%clk 0:02:52]}  Bg4 {[%clk 0:03:01]} 5. d4 {[%clk 0:02:47]}  Bxe2 {[%clk 0:03:01]} 6. Ngxe2 {[%clk 0:02:44]}  Qa5 {[%clk 0:03:01]} 7. O-O {[%clk 0:02:43]}  Nf6 {[%clk 0:03:01]} 8. b4 {[%clk 0:02:38]}  Qh5 {[%clk 0:03:01]} 9. Bf4 {[%clk 0:02:20]}  e6 {[%clk 0:03:00]} 10. Bxc7 {[%clk 0:02:13]}  Bxb4 {[%clk 0:03:00]} 11. Rb1 {[%clk 0:02:08]}  Nc6 {[%clk 0:03:00]} 12. Qd3 {[%clk 0:02:00]}  O-O {[%clk 0:02:47]} 13. Nf4 {[%clk 0:01:53]}  Qg5 {[%clk 0:02:45]} 14. d5 {[%clk 0:01:45]}  exd5 {[%clk 0:02:20]} 15. Ncxd5 {[%clk 0:01:44]}  Nxd5 {[%clk 0:02:20]} 16. Nxd5 {[%clk 0:01:43]}  Qg4 {[%clk 0:00:57]} 17. h3 {[%clk 0:00:37]}  Qc8 {[%clk 0:00:56]} 18. Qc4 {[%clk 0:00:28]}  Qd7 {[%clk 0:00:06]} 19. Rfd1 {[%clk 0:00:22]}  Kh8 {[%clk 0:00:05]} 20. Rxb4 {[%clk 0:00:14]}  Nxb4 {[%clk 0:00:06]} 21. Qxb4 {[%clk 0:00:14]}  Qc6 {[%clk 0:00:04]} 22. c4 {[%clk 0:00:12]}  Rfe8 {[%clk 0:00:04]} 23. Bg3 {[%clk 0:00:11]}  Rad8 {[%clk 0:00:04]} 24. Qb3 {[%clk 0:00:11]}  h6 {[%clk 0:00:04]} 25. Ne3 {[%clk 0:00:10]}  Rxd1+ {[%clk 0:00:04]} 26. Qxd1 {[%clk 0:00:11]}  Qe6 {[%clk 0:00:03]} 27. Qd5 {[%clk 0:00:10]}  Re7 {[%clk 0:00:03]} 28. Bd6 {[%clk 0:00:09]}  Rd7 {[%clk 0:00:03]} 29. Qxe6 {[%clk 0:00:08]}  fxe6 {[%clk 0:00:04]} 30. c5 {[%clk 0:00:09]}  b6 {[%clk 0:00:04]} 31. Kf1 {[%clk 0:00:08]}  bxc5 {[%clk 0:00:04]} 32. Bxc5 {[%clk 0:00:08]}  Rd2 {[%clk 0:00:04]} 33. a3 {[%clk 0:00:08]}  a6 {[%clk 0:00:03]} 34. Bb4 {[%clk 0:00:08]}  Ra2 {[%clk 0:00:03]} 35. g3 {[%clk 0:00:08]}  Kg8 {[%clk 0:00:03]} 36. Nc4 {[%clk 0:00:08]}  Kf7 {[%clk 0:00:04]} 37. Ne5+ {[%clk 0:00:08]}  Kf6 {[%clk 0:00:03]} 38. Nd3 {[%clk 0:00:08]}  g6 {[%clk 0:00:02]} 39. Nc5 {[%clk 0:00:08]}  a5 {[%clk 0:00:02]} 40. Bxa5 {[%clk 0:00:07]}  Rxa3 {[%clk 0:00:02]} 41. Bb4 {[%clk 0:00:07]}  Ra2 {[%clk 0:00:02]} 42. Kg2 {[%clk 0:00:08]}  h5 {[%clk 0:00:02]} 43. Ne4+ {[%clk 0:00:08]}  Kf7 {[%clk 0:00:02]} 44. Bc3 {[%clk 0:00:06]}  Rc2 {[%clk 0:00:02]} 45. Ng5+ {[%clk 0:00:06]}  Ke7 {[%clk 0:00:02]} 46. Be5 {[%clk 0:00:07]}  Ra2 {[%clk 0:00:02]} 47. Nf3 {[%clk 0:00:08]}  Ra3 {[%clk 0:00:01]} 48. h4 {[%clk 0:00:09]}  Ra2 {[%clk 0:00:01]} 49. Bf4 {[%clk 0:00:10]}  Kf7 {[%clk 0:00:01]} 50. Bg5 {[%clk 0:00:10]}  Kg7 {[%clk 0:00:01]} 51. Ne5 {[%clk 0:00:10]}  Ra6 {[%clk 0:00:02]} 52. Kf3 {[%clk 0:00:09]}  Rb6 {[%clk 0:00:02]} 53. Ke4 {[%clk 0:00:09]}  Ra6 {[%clk 0:00:03]} 54. Be3 {[%clk 0:00:10]}  Kf6 {[%clk 0:00:02]} 55. Bd4 {[%clk 0:00:10]}  Kg7 {[%clk 0:00:02]} 56. Nf3+ {[%clk 0:00:10]}  Kf7 {[%clk 0:00:02]} 57. Ng5+ {[%clk 0:00:10]}  Ke7 {[%clk 0:00:03]} 58. Bc5+ {[%clk 0:00:11]}  Kf6 {[%clk 0:00:02]} 59. Nf3 {[%clk 0:00:10]}  Ra4+ {[%clk 0:00:02]} 60. Bd4+ {[%clk 0:00:11]}  Kf7 {[%clk 0:00:03]} 61. Kf4 {[%clk 0:00:11]}  Ra5 {[%clk 0:00:02]} 62. Ne5+ {[%clk 0:00:11]}  Ke7 {[%clk 0:00:02]} 63. Nxg6+ {[%clk 0:00:11]}  Kd6 {[%clk 0:00:02]} 64. Ke4 {[%clk 0:00:11]}  Ra4 {[%clk 0:00:02]} 65. Ne5 {[%clk 0:00:11]}  Rb4 {[%clk 0:00:03]} 66. Nd3 {[%clk 0:00:11]}  Ra4 {[%clk 0:00:02]} 67. f3 {[%clk 0:00:10]}  Rc4 {[%clk 0:00:02]} 68. g4 {[%clk 0:00:10]}  hxg4 {[%clk 0:00:03]} 69. fxg4 {[%clk 0:00:11]}  Rc2 {[%clk 0:00:03]} 70. h5 {[%clk 0:00:11]}  Re2+ {[%clk 0:00:03]} 71. Kf3 {[%clk 0:00:11]}  Rh2 {[%clk 0:00:03]} 72. Be5+ {[%clk 0:00:10]} 1-0


[Site "https://www.chess.com"]